Cogmind - Beta 16 @@@ ROGUE MODE // 2025.10.25 @ 08:59:56 Player: shapeshifter Result: Core destroyed Performance ------------- Evolutions (8) 4000 Regions Visited (25) 5000 Robots Destroyed (330) 1650 Value Destroyed (14165) 14165 Prototype IDs (54) 1080 Alien Tech Used (0) 0 Bonus (11651) 11651 TOTAL SCORE: 37546 Bonus ------- High Alert Combat Kills 1507 Follower Combat Kills 2188 Network Hubs Disabled 200 Met Warlord at Base 500 MAIN.C Attacked Warlord 500 Warlord Defense Kills 4212 Built Enhanced Grunts 300 A7 Reached Mainframe 300 Met R17 at Cetus 500 Met R17 at Research 2000 Friendly Fire -556 Cogmind --------- Core Integrity 0/1450 Matter 215/300 Energy 580/580 System Corruption 0% Temperature Hot (236) Movement Walking (111) Location -2/Research Parts ------- > --- POWER (4) -------- Heavy Antimatter Reactor Heavy Antimatter Reactor > --- PROPULSION (6) --- Advanced VSS Leg Improved Thunder Leg Heavy Shield Leg Heavy Shield Leg > --- UTILITY (9) ------ Advanced Heat Sink High-capacity Storage Unit Advanced Sensor Array Advanced Signal Interpreter Experimental Targeting Computer Experimental Target Analyzer Experimental Core Analyzer Advanced Reaction Control System Advanced Cloaking Device > --- WEAPON (4) ------- Enhanced Nova Cannon Enhanced Nova Cannon Enhanced Hardcell Cannon Enhanced Hardcell Cannon > --- INVENTORY (20) --- Vortex Chain Reactor Centrium Leg Centrium Leg Heavy Shield Leg Advanced Heat Sink Energy Well (350) Compact HERF Cannon Compact HERF Cannon BFG-9k Vortex Edition Improved Remote Datajack CPS Tube (2) CPS Tube (2) Peak State ------------ > --- POWER ------------ Heavy Antimatter Reactor Heavy Antimatter Reactor > --- PROPULSION ------- Advanced VSS Leg Improved Thunder Leg Heavy Shield Leg Heavy Shield Leg > --- UTILITY ---------- Advanced Heat Sink High-capacity Storage Unit Advanced Sensor Array Advanced Signal Interpreter Experimental Targeting Computer Experimental Target Analyzer Experimental Core Analyzer Advanced Reaction Control System Advanced Cloaking Device > --- WEAPON ----------- Enhanced Nova Cannon Enhanced Nova Cannon Enhanced Hardcell Cannon Enhanced Hardcell Cannon > --- INVENTORY -------- Vortex Chain Reactor Centrium Leg Centrium Leg Heavy Shield Leg Matter Compressor BFG-9k Vortex Edition Enhanced Hardcell Cannon Enhanced Hardcell Cannon Fusion Bomb Launcher Improved Remote Datajack CPS Tube CPS Tube CPS Tube [Rating: 178] Favorites ----------- Power Quantum Reactor Engine Heavy Ion Engine Power Core Micro Nuclear Core Reactor Quantum Reactor Propulsion Advanced Treads Treads Advanced Treads Leg Enhanced Biometal Leg Hover Unit Improved Airjet Flight Unit Cooled Impulse Thruster Utility High-capacity Storage Unit Device Advanced Sensor Array Storage High-capacity Storage Unit Processor Advanced Targeting Computer Hackware Hacking Suite Protection Centrium Medium Armor Plating Weapon Enhanced Autogun Energy Gun Heavy Particle Gun Energy Cannon Enhanced Nova Cannon Ballistic Gun Enhanced Autogun Ballistic Cannon Enhanced Hardcell Cannon Launcher Scatter Rocket Array Special Weapon Improved Remote Datajack Impact Weapon Gravity Flail Piercing Weapon Kinetic Spear Build | -11 -10 -10 -9 -9 -9 -8 -8 -8 -8 -8 -6 -6 -6 -6 -6 -5 -5 -5 -5 -4 -4 -4 -4 -3 -2 ------- Run | Yrd Mat Min Mat Min Exi Min Mat Sto Rec Scr Fac Ext Cet Arc Hub Fac Upp Upp War Pro Fac Arm Lab Res Res Slots Evolved 16 | . . . 2 . . . 2 . . . 4 . . . . 2 . . . . 2 . . 2 2 Power 3 | . . . . . . . . . . . 1 . . . . . . . . . . . . . 2 Propulsion 4 | . . . 1 . . . 1 . . . . . . . . . . . . . 2 . . . . Utility 7 | . . . 1 . . . . . . . 2 . . . . 2 . . . . . . . 2 . Weapon 2 | . . . . . . . 1 . . . 1 . . . . . . . . . . . . . . Parts Attached 195 | 8 4 . 15 . . 9 20 15 . 1 13 7 12 . 4 17 2 . 26 . 7 29 . 4 2 Power 22 | 1 1 . 1 . . 2 2 1 . . 2 2 2 . 2 1 . . . . . 5 . . . Engine 6 | 1 1 . 1 . . 1 . . . . . 2 . . . . . . . . . . . . . Core 7 | . . . . . . 1 2 1 . . 2 . . . . . . . . . . 1 . . . Reactor 9 | . . . . . . . . . . . . . 2 . 2 1 . . . . . 4 . . . Propulsion 54 | 2 . . 7 . . 2 8 5 . . 2 2 2 . 2 . . . 7 . 4 10 . 1 . Treads 34 | 2 . . 7 . . 2 7 4 . . 2 2 2 . 2 . . . . . 4 . . . . Leg 14 | . . . . . . . . . . . . . . . . . . . 5 . . 8 . 1 . Wheel . | . . . . . . . . . . . . . . . . . . . . . . . . . . Hover 3 | . . . . . . . 1 . . . . . . . . . . . 1 . . 1 . . . Flight 3 | . . . . . . . . 1 . . . . . . . . . . 1 . . 1 . . . Utility 51 | 3 2 . 4 . . 2 3 3 . 1 5 2 2 . . 8 1 . 7 . 2 3 . 3 . Device 18 | 2 . . . . . 1 1 1 . . 1 . 1 . . 2 1 . 3 . . 3 . 2 . Storage 4 | 1 1 . 1 . . . . . . . . . . . . 1 . . . . . . . . . Processor 11 | . . . 1 . . . . 1 . . 2 . . . . 2 . . 3 . 1 . . 1 . Hackware 4 | . . . . . . . . . . . 1 1 . . . 1 . . . . 1 . . . . Protection 14 | . 1 . 2 . . 1 2 1 . 1 1 1 1 . . 2 . . 1 . . . . . . Artifact . | . . . . . . . . . . . . . . . . . . . . . . . . . . Weapon 68 | 2 1 . 3 . . 3 7 6 . . 4 1 6 . . 8 1 . 12 . 1 11 . . 2 Energy Gun 15 | . 1 . . . . 1 4 1 . . . . 1 . . . . . 3 . . 4 . . . Energy Cannon 8 | . . . . . . . 3 1 . . . . . . . 2 . . . . . 2 . . . Ballistic Gun 22 | 2 . . 3 . . 2 . 3 . . 1 1 5 . . 3 . . 2 . . . . . . Ballistic Cannon 3 | . . . . . . . . . . . . . . . . . . . . . . 3 . . . Launcher 8 | . . . . . . . . . . . 3 . . . . 1 1 . 1 . . 2 . . . Special Weapon 10 | . . . . . . . . 1 . . . . . . . 1 . . 6 . . . . . 2 Impact Weapon 1 | . . . . . . . . . . . . . . . . . . . . . 1 . . . . Slashing Weapon . | . . . . . . . . . . . . . . . . . . . . . . . . . . Piercing Weapon 1 | . . . . . . . . . . . . . . . . 1 . . . . . . . . . Special Melee Weapon . | . . . . . . . . . . . . . . . . . . . . . . . . . . Unidentified Prototypes 37 | . 1 . 1 . . . 2 3 . . 2 . 4 . . 4 . . 14 . 3 3 . . . Corrupted Parts 5 | . . . . . . . . . . . . . 1 . 4 . . . . . . . . . . System Corruption 40 | . . . . . . . . . . . . . 11 . 29 . . . . . . . . . . Parts Lost 38 | . 2 . 5 . . 4 6 1 . . 1 2 2 . . 6 . . 1 1 1 6 . . . Power 3 | . 1 . . . . . . . . . . . . . . 1 . . . . 1 . . . . Propulsion 10 | . . . 2 . . 1 4 . . . . 2 . . . . . . . 1 . . . . . Utility 10 | . 1 . 1 . . 1 1 1 . . 1 . 1 . . 1 . . . . . 2 . . . Weapon 15 | . . . 2 . . 2 1 . . . . . 1 . . 4 . . 1 . . 4 . . . Highest Loss Streak 4 | . 1 . 2 . . 2 4 1 . . 1 2 2 . . 4 . . 1 1 1 2 . . . To Critical Strikes 2 | . . . . . . . . . . . . . 2 . . . . . . . . . . . . Average Backups 16 | 4 9 14 18 20 20 17 18 16 15 16 18 18 18 18 17 17 17 18 16 13 13 12 12 12 12 Power 1 | . . . . 1 1 1 2 1 1 1 . 1 2 3 3 2 1 1 1 1 1 1 1 1 1 Propulsion 2 | 1 2 2 2 4 4 2 3 3 2 2 1 1 2 2 1 2 2 2 1 . 1 1 2 2 3 Utility 5 | . 3 7 7 8 8 8 7 5 5 6 6 4 4 3 5 4 3 3 4 4 3 3 1 1 2 Weapon 4 | . 2 5 6 6 6 4 3 4 5 4 4 6 5 5 4 4 7 8 5 4 3 2 4 3 3 Tool/Special . | . . . . . . . . . . . . . . . . . . . . . . . . . . Unused Backups 65 | . 1 . 7 . . . 6 5 . 1 9 . 8 2 . 4 . . 4 . . 4 . 4 10 Power 5 | . . . . . . . . . . . 1 . 1 . . . . . . . . 2 . . 1 Propulsion 10 | . . . 2 . . . . 3 . . . . 3 . . . . . . . . . . . 2 Utility 23 | . . . 4 . . . 1 . . . 4 . 3 . . 4 . . 2 . . 2 . 1 2 Weapon 24 | . 1 . 1 . . . 5 2 . 1 3 . 1 2 . . . . 2 . . . . 3 3 Tool/Special 3 | . . . . . . . . . . . 1 . . . . . . . . . . . . . 2 Average Slot Usage (%) 92 | . 99 100 96 100 100 99 91 99 100 100 98 99 88 86 86 84 82 84 86 90 85 87 89 86 82 Engine 2 | . 13 14 11 11 11 7 . . . . . 4 2 . . . . . . . . . . . . Core 3 | . . . . . . 3 8 9 9 9 13 8 . . . . . . . . . . . . . Reactor 4 | . . . . . . . . . . . . . 9 13 13 9 10 11 10 9 8 8 10 9 8 Treads 21 | . 28 28 31 33 33 33 29 36 36 36 25 25 16 13 13 11 11 11 8 . 20 7 . . . Leg 3 | . . . . . . . . . . . . . . . . . . . 3 21 10 18 21 19 17 Device 7 | . 10 . . . . 9 9 1 . . 3 6 6 6 6 6 16 17 11 5 5 9 10 14 17 Storage 7 | . 14 14 11 11 11 11 9 9 9 9 6 6 6 6 6 5 5 5 5 5 5 5 5 4 4 Processor 11 | . . . 10 11 11 . . 7 9 9 13 13 13 13 13 15 11 11 16 23 21 21 21 19 17 Protection 6 | . 3 14 9 11 11 11 8 8 9 9 5 3 5 6 6 10 5 5 4 5 3 . . . . Energy Gun 3 | . . . . . . 7 17 9 . . . . 2 . . . . . 1 4 3 6 . . . Energy Cannon 1 | . . . . . . . 6 . . . . . . . . . . . 2 . . 1 10 9 8 Ballistic Gun 16 | . 27 28 21 22 22 14 . 16 27 27 25 26 22 26 26 20 17 17 12 5 2 2 . . . Peak Build Rating 178 | 7 10 9 20 18 18 19 35 43 39 40 59 62 119 119 118 140 127 127 148 137 163 166 166 178 177 Average Rating 79 | 5 7 8 16 18 18 18 32 38 39 39 54 59 103 118 117 129 121 123 133 133 140 153 166 172 176 On Entrance 76 | . 7 8 9 18 18 18 19 35 39 39 40 58 60 119 118 118 115 121 127 140 123 130 166 166 177 Avg Prop Armor Cover (%) 6 | . . . . . . . . . . . . . . . . . . . . . 5 8 . . . Naked Turns . | . . . . . . . . . . . . . . . . . . . . . . . . . . Heaviest Build 134 | 12 31 31 60 60 60 61 76 64 62 62 81 86 112 112 112 120 123 119 125 107 107 130 130 134 134 Greatest Support 168 | 40 40 40 63 60 60 60 82 88 88 88 88 94 160 160 160 160 160 160 160 110 140 168 168 168 166 Greatest Overweight (x) 3 | . . . 1 . . 1 3 . . . 1 . . . . 1 . . 1 . 2 . . . . Average Overweight (x) . | . . . . . . . . . . . . . . . . . . . . . . . . . . Largest Inventory Capacity 20 | 8 15 15 20 20 20 20 20 20 20 20 20 20 20 20 20 20 20 20 20 20 20 20 20 20 20 Average Capacity 19 | 7 14 15 18 20 20 20 20 20 20 20 20 20 20 20 20 20 20 20 20 20 20 20 20 20 20 Most Carried 20 | 6 15 15 20 20 20 20 20 20 17 20 20 20 20 20 20 20 20 20 20 20 20 20 19 20 20 Average Carried 18 | 4 9 14 18 20 20 17 18 18 17 18 19 18 19 20 19 19 19 19 19 19 19 19 19 19 19 Final Capacity 20 | 8 15 15 20 20 20 20 20 20 20 20 20 20 20 20 20 20 20 20 20 20 20 20 20 20 20 Final Carried 20 | 6 13 15 20 20 20 17 20 17 17 20 18 20 20 20 20 20 20 20 20 20 20 19 19 20 19 Class Distribution -------------------- 32% | Scavenger-Tank 19% | Scavenger-Mutant 16% | Commander-Gunner 13% | Gunner 11% | Mutant 3% | Scavenger-Gunner Dominant Class ---------------- Mutant | -10/Materials Mutant | -10/Mines Scavenger-Mutant | -9/Materials Scavenger-Mutant | -9/Mines Scavenger-Mutant | -9/Exiles Scavenger-Mutant | -8/Mines Scavenger-Tank | -8/Materials Commander-Gunner | -8/Storage Commander-Gunner | -8/Recycling Commander-Gunner | -8/Scraptown Commander-Gunner | -6/Factory Gunner | -6/Extension Scavenger-Tank | -6/Cetus Scavenger-Tank | -6/Archives Scavenger-Tank | -6/Hub_04(d) Scavenger-Tank | -5/Factory Scavenger-Tank | -5/Upper Caves Scavenger-Tank | -5/Upper Caves Scavenger-Tank | -5/Warlord Scavenger-Gunner | -4/Proximity Caves Scavenger-Mutant | -4/Factory Gunner | -4/Armory Gunner | -4/Lab Gunner | -3/Research Generator-Gunner | -2/Research Resources | -11 -10 -10 -9 -9 -9 -8 -8 -8 -8 -8 -6 -6 -6 -6 -6 -5 -5 -5 -5 -4 -4 -4 -4 -3 -2 ----------- Run | Yrd Mat Min Mat Min Exi Min Mat Sto Rec Scr Fac Ext Cet Arc Hub Fac Upp Upp War Pro Fac Arm Lab Res Res Matter Collected 10505 | 312 153 344 740 . . 237 291 383 84 . 622 1208 483 241 140 1890 307 569 868 32 362 1057 . 182 . Remotely 49 | 49 . . . . . . . . . . . . . . . . . . . . . . . . . Salvage Created 14074 | 153 308 . 1151 13 . 470 1167 721 114 . 938 1387 334 361 391 2712 275 270 559 70 368 1873 . 261 178 Parts 675 | 13 21 . 85 . . 33 52 39 4 . 32 68 17 21 20 104 16 18 12 5 19 80 . 9 7 Haulers Intercepted 9 | . 1 . 2 . . . . 1 . . 2 . . . . 2 . . . . . . . 1 . Recyclers Shooed 6 | . 1 . . . . . . . . . 1 1 . . . 1 . . . . . . . 1 1 Parts Field Recycled . | . . . . . . . . . . . . . . . . . . . . . . . . . . Retrieved Matter . | . . . . . . . . . . . . . . . . . . . . . . . . . . Parts Self-Destructed 39 | . . . . . . . . . . . . . . . . . 16 18 . 5 . . . . . Prevented . | . . . . . . . . . . . . . . . . . . . . . . . . . . Parts Restored . | . . . . . . . . . . . . . . . . . . . . . . . . . . Kills | -11 -10 -10 -9 -9 -9 -8 -8 -8 -8 -8 -6 -6 -6 -6 -6 -5 -5 -5 -5 -4 -4 -4 -4 -3 -2 ------- Run | Yrd Mat Min Mat Min Exi Min Mat Sto Rec Scr Fac Ext Cet Arc Hub Fac Upp Upp War Pro Fac Arm Lab Res Res Combat Hostiles Destroyed 280 | . 9 . 27 1 . 17 23 15 2 . 8 18 4 2 3 41 8 10 34 5 11 38 . 2 2 Guns 200 | . 9 . 27 1 . 17 8 14 2 . 8 18 4 2 3 35 7 10 2 5 6 22 . . . Cannons 33 | . . . . . . . 15 . . . . . . . . . . . 3 . . 12 . 2 1 AOE 44 | . . . . . . . . . . . . . . . . 6 1 . 29 . 5 3 . . . Classes Destroyed 20 | 2 4 . 3 1 . 1 . 1 . . . 3 . . . 1 . . 3 . . 1 . . . Worker 10 | . . . 2 . . . 1 1 . . 2 . . . 2 1 . . . . . . . . 1 Builder 5 | . . . 1 . . . . . . . . 1 . . 1 1 . . . . 1 . . . . Tunneler 4 | 3 . . . . . . . . . . . . . . . 1 . . . . . . . . . Hauler 9 | . 1 . 2 . . . . 1 . . 2 . . . . 2 . . . . . . . 1 . Recycler 6 | 1 . . 1 . . . 1 . . . 1 1 . . . 1 . . . . . . . . . Operator 7 | . . . . . . . . . . . . 1 . 6 . . . . . . . . . . . Watcher 8 | . 1 . 2 . . . . . . . . 1 1 . . 2 . . . . . . . 1 . Swarmer 75 | . 5 . 11 . . 11 4 4 . . . 2 . . . 8 4 10 1 5 5 5 . . . Saboteur 2 | . . . . . . . . . . . . . . . . . . . . . . 2 . . . Grunt 97 | . 4 . 10 . . 5 13 4 . . 5 6 . . 1 17 3 . 11 . 2 16 . . . Brawler 15 | . . . . . . 1 1 . . . 1 . . . . 2 1 . 8 . . 1 . . . Duelist 5 | . . . . . . . . . . . . 1 . . . 1 . . 3 . . . . . . Protector 2 | . . . . . . . . . . . . . . . . . . . 2 . . . . . . Sentry 39 | . . . 6 . . . 5 6 2 . 1 8 . 2 2 4 . . . . . 3 . . . Specialist 8 | . . . . . . . . . . . . . . . . . . . 3 . 2 3 . . . Hunter 9 | . . . . . . . . 1 . . 1 . . . . 2 . . . . . 1 . 2 2 Programmer 19 | . . . . . . . . . . . . . . . . 7 . . 4 . 2 6 . . . Behemoth 3 | . . . . . . . . . . . . 1 . . . . . . 1 . . 1 . . . Cetus Guard 4 | . . . . . . . . . . . . . 4 . . . . . . . . . . . . Enhanced Grunt 1 | . . . . . . . . . . . . . . . 1 . . . . . . . . . . Executioner 1 | . . . . . . . . . . . . . . . . . . . 1 . . . . . . Assembled 1 | . . . . 1 . . . . . . . . . . . . . . . . . . . . . Guerrilla 1 | . . . . . . . . . . . . . . . . 1 . . . . . . . . . Best Kill Streak 15 | 2 3 . 9 1 . 4 8 4 1 . 4 4 2 4 2 7 4 5 15 5 5 7 . 2 3 Combat Bots Only 15 | . 3 . 6 1 . 4 7 4 1 . 4 4 2 2 1 7 4 5 15 5 5 7 . 2 2 Max Kills in Single Turn 6 | 1 1 . 2 1 . 2 1 2 1 . 1 1 2 2 2 6 1 3 5 1 5 1 . 1 1 Gunslinging 2 | . . . 1 . . 1 . 1 . . . . 1 . . 2 . 2 . . . . . . . Exploded 6 | . . . . . . . . . . . . . . . . 6 1 . 5 . 5 1 . . . Melee . | . . . . . . . . . . . . . . . . . . . . . . . . . . Uniques/NPCs Destroyed . | . . . . . . . . . . . . . . . . . . . . . . . . . . Combat | -11 -10 -10 -9 -9 -9 -8 -8 -8 -8 -8 -6 -6 -6 -6 -6 -5 -5 -5 -5 -4 -4 -4 -4 -3 -2 -------- Run | Yrd Mat Min Mat Min Exi Min Mat Sto Rec Scr Fac Ext Cet Arc Hub Fac Upp Upp War Pro Fac Arm Lab Res Res Hostile Shots Fired 1608 | . 66 . 126 1 . 91 135 59 8 . 73 143 58 . 54 180 19 46 97 12 116 282 . 14 28 Missed 506 | . 14 . 35 . . 24 26 19 2 . 34 44 21 . 18 57 7 18 38 4 36 90 . 8 11 Hits 1102 | . 52 . 91 1 . 67 109 40 6 . 39 99 37 . 36 123 12 28 59 8 80 192 . 6 17 Melee 16 | . . . . . . 6 . . . . . 2 . . 4 3 . . . . . . . . 1 Projectile 1086 | . 52 . 91 1 . 61 109 40 6 . 39 97 37 . 32 120 12 28 59 8 80 192 . 6 16 AOE 7 | . . . . . . . . . . . . . . . . . . . 7 . . . . . . Critical Strikes 33 | . 2 . . . . . 1 1 1 . 2 3 5 . . 2 1 . . . 3 12 . . . Part Disruptions 2 | . . . . . . . . . . . . . . . . 1 . . . . . 1 . . . Damage Taken 17381 | . 535 . 1036 16 . 841 1542 555 90 . 551 978 819 47 504 2467 130 200 824 118 1636 3955 . 176 361 Core 1542 | . 78 . 145 . . 47 201 58 . . . 116 77 . 56 205 18 33 52 . 121 312 . . 23 Absorbed by Shields 1294 | . . . . . . . . . . . . 145 170 . . . 142 219 618 . . . . . . Ignored by Resistances 51 | . . . . . . . . . . . . . . . . . . . 5 . . 46 . . . Regen/Repaired (Parts) 60 | . . . . . . . . . . . . . . . . . . . 60 . . . . . . Core Remaining (%) 71 | 100 . 68 . . . 52 . . . 52 . . . . 70 . . . . 69 . . 62 100 . Volleys Fired 857 | 8 55 . 93 1 . 52 70 43 7 . 37 53 19 13 10 86 12 13 49 14 70 117 . 22 13 Largest 4 | 2 2 . 2 2 . 2 3 3 3 . 4 4 4 4 4 4 3 3 2 2 1 4 . 2 4 Hottest 356 | 40 40 . 43 43 . 85 240 165 75 . 100 100 105 140 140 140 99 99 90 83 160 356 . 240 356 Shots Fired 1944 | 16 110 . 184 2 . 104 143 101 21 . 148 212 68 53 40 279 33 40 58 16 72 189 . 28 27 Gun 1693 | 16 110 . 184 2 . 104 60 101 21 . 148 212 68 53 40 273 32 40 20 16 71 122 . . . Cannon 203 | . . . . . . . 83 . . . . . . . . 4 . . 1 . . 63 . 28 24 Launcher 7 | . . . . . . . . . . . . . . . . 1 1 . . . 1 4 . . . Special 41 | . . . . . . . . . . . . . . . . 1 . . 37 . . . . . 3 Kinetic 1474 | 16 110 . 184 2 . 90 . 42 21 . 148 212 68 53 40 273 32 40 7 3 55 68 . 4 6 Thermal 347 | . . . . . . 14 143 59 . . . . . . . 4 . . 1 . . 84 . 24 18 Explosive 29 | . . . . . . . . . . . . . . . . 1 1 . 22 . 1 4 . . . Electromagnetic . | . . . . . . . . . . . . . . . . . . . . . . . . . . Entropic 75 | . . . . . . . . . . . . . . . . . . . 13 13 16 33 . . . Robot Hit Streak 43 | 5 6 . 27 9 . 43 18 21 8 . 19 20 17 9 6 15 7 4 23 4 14 28 . 3 4 Robot Miss Streak 8 | 1 8 . 5 . . 3 4 3 1 . 4 4 2 3 2 4 5 3 3 3 3 8 . 3 2 Penetration Max 1 | . . . . . . . . . . . . . . 1 . 1 . 1 1 . 1 . . . . Secondary Targets 42 | . 1 . 9 . . 5 . 1 . . 2 4 1 . . 7 2 5 1 . . 4 . . . Max Gunslinging Chain 2 | . 1 . 1 . . 1 . 1 . . 1 1 1 . . 2 1 2 1 . . 1 . . . Shots Hit Robots 1228 | 8 52 . 124 2 . 79 84 68 17 . 95 141 54 28 14 185 16 22 44 9 29 132 . 10 15 Core Hits 638 | 6 18 . 54 2 . 34 42 25 6 . 33 60 25 16 10 95 15 10 71 5 19 83 . 4 5 Critical Kills 31 | . . . . . . 1 . . . . . . . 3 4 20 . . . 1 1 . . . 1 Critical Parts Destroyed 46 | . 1 . 1 . . . . . . . 1 . 1 2 1 29 . . 4 . 2 4 . . . Critical Strikes 99 | . 1 . 1 . . 1 3 1 . . 1 . 1 6 5 50 . . 10 1 3 13 . 1 1 Burn 6 | . . . . . . . 3 1 . . . . . . . . . . . . . 2 . . . Meltdown 1 | . . . . . . . . . . . . . . . . . . . . . . . . . 1 Destroy 74 | . 1 . 1 . . 1 . . . . 1 . 1 6 5 50 . . 1 1 3 3 . . . Blast 6 | . . . . . . . . . . . . . . . . . . . . . . 5 . 1 . Sever 6 | . . . . . . . . . . . . . . . . . . . 6 . . . . . . Detonate 6 | . . . . . . . . . . . . . . . . . . . 3 . . 3 . . . Melee Attacks . | . . . . . . . . . . . . . . . . . . . . . . . . . . Impact . | . . . . . . . . . . . . . . . . . . . . . . . . . . Slashing . | . . . . . . . . . . . . . . . . . . . . . . . . . . Piercing . | . . . . . . . . . . . . . . . . . . . . . . . . . . Sneak Attacks . | . . . . . . . . . . . . . . . . . . . . . . . . . . Combat Hostiles . | . . . . . . . . . . . . . . . . . . . . . . . . . . Follow-up Attacks . | . . . . . . . . . . . . . . . . . . . . . . . . . . Damage Inflicted 37521 | 91 542 . 1585 24 . 796 2015 1221 280 . 1637 2608 1208 882 866 6128 680 555 8126 289 1497 5201 . 519 771 Guns 23979 | 91 542 . 1585 24 . 796 667 1199 280 . 1637 2597 1208 882 484 5700 370 555 539 289 1087 3447 . . . Cannons 3864 | . . . . . . . 1325 . . . . . . . . . . . . . . 1249 . 519 771 Explosions 8672 | . . . . . . . . . . . . . . . 382 428 310 . 6661 . 387 504 . . . Melee . | . . . . . . . . . . . . . . . . . . . . . . . . . . Ramming 80 | . . . . . . . 23 22 . . . 11 . . . . . . . . 23 1 . . . Kinetic 19967 | 91 542 . 1585 24 . 685 . 403 280 . 1637 2597 1208 882 484 5700 370 555 148 56 707 1568 . 173 272 Thermal 5888 | . . . . . . 111 1992 796 . . . . . . . . . . 336 . . 1808 . 346 499 Explosive 7731 | . . . . . . . . . . . . . . . . 428 310 . 6325 . 387 281 . . . Electromagnetic 382 | . . . . . . . . . . . . . . . 382 . . . . . . . . . . Impact . | . . . . . . . . . . . . . . . . . . . . . . . . . . Slashing 926 | . . . . . . . . . . . . . . . . . . . 926 . . . . . . Piercing . | . . . . . . . . . . . . . . . . . . . . . . . . . . Entropic 2547 | . . . . . . . . . . . . . . . . . . . 391 233 380 1543 . . . Highest Corruption 51 | . 1 1 . . . 6 . . . . . . 11 11 51 13 13 13 13 . 10 13 13 1 . Average Corruption 9 | . 1 1 . . . 5 . . . . . . 11 11 15 6 13 13 13 . 7 11 13 1 . Corruption Purged . | . . . . . . . . . . . . . . . . . . . . . . . . . . Corruption Blocked . | . . . . . . . . . . . . . . . . . . . . . . . . . . Effects 238 | . . 1 . . . 29 . . . . . . 16 11 18 23 45 32 1 . 14 47 1 . . Message Errors 50 | . . . . . . 8 . . . . . . . 1 6 3 4 11 . . 3 14 . . . Matter Fused 62 | . . 1 . . . 6 . . . . . . 4 3 2 4 19 9 . . 2 11 1 . . Heat Flow Errors 30 | . . . . . . 5 . . . . . . . 2 4 4 4 2 1 . 3 5 . . . Energy Discharges 24 | . . . . . . 1 . . . . . . 5 2 2 1 6 2 . . 1 4 . . . Parts Rejected 6 | . . . . . . 1 . . . . . . 1 . . 3 1 . . . . . . . . Parts Fused 1 | . . . . . . . . . . . . . 1 . . . . . . . . . . . . Data Loss (minor) 21 | . . . . . . 3 . . . . . . 1 1 . 1 5 2 . . 2 6 . . . Data Loss (major) 14 | . . . . . . 3 . . . . . . 1 1 3 1 . 3 . . . 2 . . . Misfires 11 | . . . . . . 1 . . . . . . 1 1 . 1 2 2 . . 2 1 . . . Alerts 7 | . . . . . . . . . . . . . 1 . 1 1 1 . . . 1 2 . . . Weapon Failures 12 | . . . . . . 1 . . . . . . 1 . . 4 3 1 . . . 2 . . . Overload Shots 9 | . . . . . . . . . . . . . . . . 3 . . 1 . . 5 . . . Overflow Damage 411 | . . . . . . . 6 . . . . . . . . . . . 340 . . 36 . 29 . Projectiles 134 | . . . . . . . 6 . . . . . . . . . . . 99 . . . . 29 . Explosions 277 | . . . . . . . . . . . . . . . . . . . 241 . . 36 . . . Melee . | . . . . . . . . . . . . . . . . . . . . . . . . . . Knockbacks 5 | . . . . . . . . . . . . . . . . . . . . . . 5 . . . Impact . | . . . . . . . . . . . . . . . . . . . . . . . . . . Kinetic 4 | . . . . . . . . . . . . . . . . . . . . . . 4 . . . Secondary 1 | . . . . . . . . . . . . . . . . . . . . . . 1 . . . Self-Inflicted Damage 394 | . . . . . . . . . . . . . . . 86 28 66 . . . . 214 . . . Shots 9 | . . . . . . . . . . . . . . . 1 1 3 . . . . 4 . . . Rammed 10 | . . . . . . . 4 4 . . . 1 . . . . . . . . 1 . . . . Targets Rammed 11 | . . . . . . . 4 4 . . . 1 . . . . . . . . 1 1 . . . Kicked 1 | . . . . . . . . . . . . . . . . . . . . . . 1 . . . Crushed . | . . . . . . . . . . . . . . . . . . . . . . . . . . Highest Temperature 458 | . 19 . 51 8 . 337 458 381 123 . 286 351 196 287 291 243 236 170 156 92 279 379 . 198 358 Average Temperature 88 | . 8 . 12 6 . 89 144 118 44 . 99 92 60 68 70 31 98 81 65 46 76 104 . 55 154 Received Heat Transfer 4402 | . 144 . 363 . . 216 711 144 45 . 156 298 71 . 117 429 24 . 124 . 301 1211 . 48 . Effects 10 | . . . . . . . 5 1 . . . . . . 1 . . . . . . 2 . . 1 Shutdowns 2 | . . . . . . . 1 . . . . . . . . . . . . . . . . . 1 Energy Bleed 2 | . . . . . . . . 1 . . . . . . 1 . . . . . . . . . . Matter Decay 4 | . . . . . . . 2 . . . . . . . . . . . . . . 2 . . . Short Circuit 1 | . . . . . . . 1 . . . . . . . . . . . . . . . . . . Damage (major) 1 | . . . . . . . 1 . . . . . . . . . . . . . . . . . . Siege Activations . | . . . . . . . . . . . . . . . . . . . . . . . . . . Martial Activations . | . . . . . . . . . . . . . . . . . . . . . . . . . . Shielding Activations . | . . . . . . . . . . . . . . . . . . . . . . . . . . Robots Disrupted . | . . . . . . . . . . . . . . . . . . . . . . . . . . Combat Hostiles . | . . . . . . . . . . . . . . . . . . . . . . . . . . Robots Corrupted . | . . . . . . . . . . . . . . . . . . . . . . . . . . Combat Hostiles . | . . . . . . . . . . . . . . . . . . . . . . . . . . Parts Fried 1 | . . . . . . . . . . . . . . . . 1 . . . . . . . . . Impact Corruptions . | . . . . . . . . . . . . . . . . . . . . . . . . . . Robots Melted 3 | . . . . . . . . 1 . . . . . . . . . . . . . 1 . . 1 Combat Hostiles 3 | . . . . . . . . 1 . . . . . . . . . . . . . 1 . . 1 Parts Melted 30 | . . . . . . . 11 3 . . 1 3 . . . . . . . . . 11 . . 1 Heat Transferred 9359 | . . . . . . 259 4154 1628 . . . . . . . . . . 200 . . 2518 . 296 304 Parts Sabotaged . | . . . . . . . . . . . . . . . . . . . . . . . . . . Parts Stolen . | . . . . . . . . . . . . . . . . . . . . . . . . . . Parts Stripped . | . . . . . . . . . . . . . . . . . . . . . . . . . . Power Chain Reactions . | . . . . . . . . . . . . . . . . . . . . . . . . . . Alert | -11 -10 -10 -9 -9 -9 -8 -8 -8 -8 -8 -6 -6 -6 -6 -6 -5 -5 -5 -5 -4 -4 -4 -4 -3 -2 ------- Run | Yrd Mat Min Mat Min Exi Min Mat Sto Rec Scr Fac Ext Cet Arc Hub Fac Upp Upp War Pro Fac Arm Lab Res Res Maximum Alert Level 4 | . . . 1 . . . 1 1 1 . 1 3 2 1 2 4 . . . . . 3 . . . Low Security (%) 66 | 100 100 100 30 100 . 100 91 71 97 . 87 66 . 13 52 5 . . . . 100 29 . 100 100 Level 1 19 | . . . 69 . . . 8 28 2 . 12 17 49 86 19 20 . . . . . 27 . . . Level 2 5 | . . . . . . . . . . . . 2 50 . 27 8 . . . . . 31 . . . Level 3 5 | . . . . . . . . . . . . 13 . . . 33 . . . . . 11 . . . Level 4 2 | . . . . . . . . . . . . . . . . 30 . . . . . . . . . Level 5 . | . . . . . . . . . . . . . . . . . . . . . . . . . . High Security . | . . . . . . . . . . . . . . . . . . . . . . . . . . Max Security . | . . . . . . . . . . . . . . . . . . . . . . . . . . Peak Influence 1266 | 10 79 23 369 113 . 130 213 334 203 . 297 758 456 337 597 1266 . . . . 131 755 . 52 57 Initial 415 | . . 23 . 113 . . . 44 97 . . 141 415 150 98 284 . . . . 31 49 . . 11 Average 213 | 1 20 2 222 51 . 47 137 145 135 . 99 214 397 285 275 769 . . . . 78 387 . 8 21 Influence Increases 11440 | 20 286 . 792 . . 405 667 724 351 . 587 1167 355 293 737 1568 195 220 994 110 429 1300 . 170 70 Destroy 0b10 Robot/C 6500 | . 180 . 540 . . 340 460 400 80 . 300 540 160 80 200 940 160 200 720 100 220 800 . 40 40 Destroy 0b10 Robot/NC 295 | 20 10 . 40 . . . 10 10 . . 30 25 10 30 20 50 . . 15 . 5 5 . 10 5 Destroy Leader 1062 | . 34 . 128 . . 50 100 122 . . 74 74 . . 42 172 20 20 . 10 30 162 . 14 10 Allied During Kill 1596 | . . . . . . . . 110 52 . 162 441 161 110 221 109 . . 169 . . 61 . . . Successful Hack 301 | . 17 . 54 . . . 9 20 39 . 4 55 . . 14 7 . . . . 40 18 . 24 . Select Force Hacks 210 | . 30 . . . . . . . 180 . . . . . . . . . . . . . . . . Disable Machine 540 | . . . . . . . 15 45 . . 15 . 15 60 135 135 . . . . 15 90 . 15 . Destroy Structure 576 | . . . . . . . 28 2 . . 2 2 9 13 105 140 . . . . 104 134 . 22 15 Partial Spotted 15 | . . . . . . . . . . . . 15 . . . . . . . . . . . . . Lose Combat Pursuer 345 | . 15 . 30 . . 15 45 15 . . . 15 . . . 15 15 . 90 . 15 30 . 45 . Influence Decreases 11420 | 20 225 61 501 291 . 405 562 579 503 98 298 714 721 386 439 887 872 430 596 833 378 654 747 150 70 Entered New Map 4266 | . . 38 . 178 . . . 61 153 98 . 148 327 226 185 297 468 112 375 773 19 52 747 . 9 Time Decay 6046 | 20 215 23 471 113 . 365 502 400 350 . 188 406 214 120 214 510 404 318 131 50 339 482 . 150 61 Lost Part 350 | . 10 . 30 . . 40 60 10 . . 10 20 20 . . 60 . . 10 10 10 60 . . . Lost Ally 758 | . . . . . . . . 108 . . 100 140 160 40 40 20 . . 80 . 10 60 . . . Squads Dispatched 47 | . 2 . 2 . . . 2 2 . . 4 1 . . . 15 . . . . 5 7 . 5 2 Investigation 7 | . 1 . 1 . . . 1 1 . . . . . . . . . . . . 1 1 . 1 . Extermination 9 | . . . . . . . . . . . 1 . . . . 3 . . . . 2 3 . . . Reinforcement 22 | . 1 . 1 . . . 1 1 . . 2 1 . . . 4 . . . . 2 3 . 4 2 Assault 4 | . . . . . . . . . . . . . . . . 4 . . . . . . . . . Garrison 5 | . . . . . . . . . . . 1 . . . . 4 . . . . . . . . . Intercept . | . . . . . . . . . . . . . . . . . . . . . . . . . . Searches Triggered . | . . . . . . . . . . . . . . . . . . . . . . . . . . Construction Impeded 2 | . . . . . . . . . . . . . . . . 1 . . . . 1 . . . . Haulers Reinforced 7 | . . . . . . . . . . . 1 . . . . 3 . . . . . . . 2 1 Active Scanning Responses . | . . . . . . . . . . . . . . . . . . . . . . . . . . Cargo Convoy Interrupts . | . . . . . . . . . . . . . . . . . . . . . . . . . . Stealth | -11 -10 -10 -9 -9 -9 -8 -8 -8 -8 -8 -6 -6 -6 -6 -6 -5 -5 -5 -5 -4 -4 -4 -4 -3 -2 --------- Run | Yrd Mat Min Mat Min Exi Min Mat Sto Rec Scr Fac Ext Cet Arc Hub Fac Upp Upp War Pro Fac Arm Lab Res Res Distress Signals 27 | . 1 . 2 . . . 4 1 . . . 2 2 . . 1 . . 1 . 2 3 . 7 1 Communications Jammed . | . . . . . . . . . . . . . . . . . . . . . . . . . . Distress Signals . | . . . . . . . . . . . . . . . . . . . . . . . . . . Times Spotted 407 | . 17 . 41 1 . 18 31 20 3 . 15 29 10 13 8 53 9 10 50 2 19 47 . 9 2 Peak Tracking Total 13 | . 3 . 6 1 . 4 6 4 1 . 5 5 5 1 4 9 5 5 13 2 8 6 . 5 2 Tactical Retreats 19 | . 1 . 2 1 . 1 3 1 . . . 1 . . . 1 1 . 3 . 1 1 . 2 . Traps | -11 -10 -10 -9 -9 -9 -8 -8 -8 -8 -8 -6 -6 -6 -6 -6 -5 -5 -5 -5 -4 -4 -4 -4 -3 -2 ------- Run | Yrd Mat Min Mat Min Exi Min Mat Sto Rec Scr Fac Ext Cet Arc Hub Fac Upp Upp War Pro Fac Arm Lab Res Res Traps Triggered 16 | . 1 . 2 . . . 1 1 . . 2 . . . 3 3 . . . . 2 1 . . . Indirectly 1 | . . . . . . . . . . . . . . . 1 . . . . . . . . . . Trap Hack Attempts . | . . . . . . . . . . . . . . . . . . . . . . . . . . Triggered . | . . . . . . . . . . . . . . . . . . . . . . . . . . Disarmed . | . . . . . . . . . . . . . . . . . . . . . . . . . . Reprogrammed . | . . . . . . . . . . . . . . . . . . . . . . . . . . Reused . | . . . . . . . . . . . . . . . . . . . . . . . . . . Traps Extracted . | . . . . . . . . . . . . . . . . . . . . . . . . . . Installed . | . . . . . . . . . . . . . . . . . . . . . . . . . . Triggered . | . . . . . . . . . . . . . . . . . . . . . . . . . . Machines | -11 -10 -10 -9 -9 -9 -8 -8 -8 -8 -8 -6 -6 -6 -6 -6 -5 -5 -5 -5 -4 -4 -4 -4 -3 -2 ---------- Run | Yrd Mat Min Mat Min Exi Min Mat Sto Rec Scr Fac Ext Cet Arc Hub Fac Upp Upp War Pro Fac Arm Lab Res Res Machines Disabled 39 | . 1 . . . . . 1 3 . . 1 . 1 4 9 9 . . 1 . 2 6 . 1 . Max in Single Turn 4 | . 1 . . . . . 1 1 . . 1 . 1 2 4 1 . . 1 . 1 1 . 1 . Garrison Access 2 | . . . . . . . . . . . . . . . . . . . . . . . . 1 1 Network Hub 1 | . . . . . . . . . . . . . . . 1 . . . . . . . . . . Machines Repaired . | . . . . . . . . . . . . . . . . . . . . . . . . . . Machines Dismantled 4 | . . . . . . . . 3 . . . . 1 . . . . . . . . . . . . Machines Sabotaged . | . . . . . . . . . . . . . . . . . . . . . . . . . . Overloaded Fab Kills . | . . . . . . . . . . . . . . . . . . . . . . . . . . Hacking | -11 -10 -10 -9 -9 -9 -8 -8 -8 -8 -8 -6 -6 -6 -6 -6 -5 -5 -5 -5 -4 -4 -4 -4 -3 -2 --------- Run | Yrd Mat Min Mat Min Exi Min Mat Sto Rec Scr Fac Ext Cet Arc Hub Fac Upp Upp War Pro Fac Arm Lab Res Res Machines Accessed 85 | . 7 1 9 . 1 . 6 9 12 . 6 11 . . 2 3 1 . 1 . 7 6 . 3 . Terminals 58 | . 6 1 6 . . . 5 9 6 . 3 10 . . 2 2 . . . . 3 3 . 2 . Fabricators 6 | . . . . . . . . . . . 2 . . . . . . . . . 2 2 . . . Repair Stations . | . . . . . . . . . . . . . . . . . . . . . . . . . . Recycling Units 12 | . 1 . 1 . . . . . 6 . 1 1 . . . 1 . . . . . 1 . . . Scanalyzers 5 | . . . 2 . . . 1 . . . . . . . . . . . . . 1 . . 1 . Garrison Access 1 | . . . . . . . . . . . . . . . . . . . . . 1 . . . . Total Hacks 206 | . 20 3 24 . 1 . 21 21 37 . 13 19 . . 3 10 1 . 1 . 18 8 . 6 . Successful 97 | . 11 2 11 . 1 . 13 8 18 . 7 12 . . 1 2 1 . 1 . 4 3 . 2 . Failed 108 | . 9 1 13 . . . 7 13 19 . 6 7 . . 2 8 . . . . 14 5 . 4 . Catastrophic 25 | . 2 1 1 . . . . 2 3 . 2 1 . . 1 2 . . . . 5 3 . 2 . Database Lockouts 1 | . . . . . . . 1 . . . . . . . . . . . . . . . . . . Manual 128 | . 19 3 17 . . . 20 15 25 . 9 5 1 . . 7 . . . . 7 . . . . Terminals 153 | . 18 3 17 . . . 19 21 18 . 10 16 . . 3 9 . . . . 13 3 . 3 . Fabricators 7 | . . . . . . . . . . . 2 . . . . . . . . . 2 3 . . . Repair Stations . | . . . . . . . . . . . . . . . . . . . . . . . . . . Recycling Units 30 | . 2 . 2 . . . . . 19 . 1 3 . . . 1 . . . . . 2 . . . Scanalyzers 11 | . . . 5 . . . 2 . . . . . . . . . . . . . 1 . . 3 . Garrison Access 2 | . . . . . . . . . . . . . . . . . . . . . 2 . . . . Terminal Hacks 30 | . 2 . 2 . 1 . 3 3 2 . 2 9 . . 1 1 1 . 1 . 2 . . . . Record 2 | . . . . . 1 . . 1 . . . . . . . . . . . . . . . . . Open Door 12 | . . . . . . . . 1 . . 1 8 . . . . 1 . 1 . . . . . . Level Access Points 1 | . . . . . . . . . . . . . . . . . . . . . 1 . . . . Branch Access Points 5 | . . . . . . . . 1 . . 1 1 . . . 1 . . . . 1 . . . . Terminal Index 1 | . . . 1 . . . . . . . . . . . . . . . . . . . . . . Registered Components 1 | . . . . . . . . . 1 . . . . . . . . . . . . . . . . Zone Layout 8 | . 2 . 1 . . . 3 . 1 . . . . . 1 . . . . . . . . . . Fabricator Hacks 5 | . . . . . . . . . . . 2 . . . . . . . . . 1 2 . . . Network Status 4 | . . . . . . . . . . . 2 . . . . . . . . . 1 1 . . . Build 1 | . . . . . . . . . . . . . . . . . . . . . . 1 . . . Repair Station Hacks . | . . . . . . . . . . . . . . . . . . . . . . . . . . Recycling Unit Hacks 7 | . 1 . . . . . . . 3 . . 1 . . . 1 . . . . . 1 . . . Retrieve Components 7 | . 1 . . . . . . . 3 . . 1 . . . 1 . . . . . 1 . . . Scanalyzer 6 | . . . 3 . . . 1 . . . . . . . . . . . . . . . . 2 . Retrieve Study 6 | . . . 3 . . . 1 . . . . . . . . . . . . . . . . 2 . Garrison Access Hacks . | . . . . . . . . . . . . . . . . . . . . . . . . . . Unauthorized Hacks 49 | . 8 2 6 . . . 9 5 13 . 3 2 . . . . . . . . 1 . . . . Terminals 42 | . 7 2 6 . . . 9 5 7 . 3 2 . . . . . . . . 1 . . . . Botnet 12 | . 2 1 1 . . . 4 . 1 . 1 1 . . . . . . . . 1 . . . . Skim 30 | . 5 1 5 . . . 5 5 6 . 2 1 . . . . . . . . . . . . . Fabricators . | . . . . . . . . . . . . . . . . . . . . . . . . . . Repair Stations . | . . . . . . . . . . . . . . . . . . . . . . . . . . Recycling Units 7 | . 1 . . . . . . . 6 . . . . . . . . . . . . . . . . Tunnel 7 | . 1 . . . . . . . 6 . . . . . . . . . . . . . . . . Scanalyzers . | . . . . . . . . . . . . . . . . . . . . . . . . . . Garrison Access . | . . . . . . . . . . . . . . . . . . . . . . . . . . Data Cores Recovered . | . . . . . . . . . . . . . . . . . . . . . . . . . . Used . | . . . . . . . . . . . . . . . . . . . . . . . . . . Hacking Detections 71 | . 6 1 9 . . . 6 8 10 . 6 7 . . 2 2 . . . . 6 5 . 3 . Full Trace Events 1 | . . . . . . . . . 1 . . . . . . . . . . . . . . . . Feedback Events . | . . . . . . . . . . . . . . . . . . . . . . . . . . Feedback Blocked . | . . . . . . . . . . . . . . . . . . . . . . . . . . Robot Schematics Acquired . | . . . . . . . . . . . . . . . . . . . . . . . . . . Robots Built 3 | . . . . . . . . . . . . . . . . . . . . . . 3 . . . Authchips . | . . . . . . . . . . . . . . . . . . . . . . . . . . Time 93 | . . . . . . . . . . . . . . . . . . . . . . 93 . . . Total Robot Build Rating 21 | . . . . . . . . . . . . . . . . . . . . . . 21 . . . Part Schematics Acquired . | . . . . . . . . . . . . . . . . . . . . . . . . . . Parts Built . | . . . . . . . . . . . . . . . . . . . . . . . . . . Authchips . | . . . . . . . . . . . . . . . . . . . . . . . . . . Time . | . . . . . . . . . . . . . . . . . . . . . . . . . . Total Part Build Rating . | . . . . . . . . . . . . . . . . . . . . . . . . . . Part Studies Acquired 6 | . . . 3 . . . 1 . . . . . . . . . . . . . . . . 2 . Parts Repaired . | . . . . . . . . . . . . . . . . . . . . . . . . . . Time . | . . . . . . . . . . . . . . . . . . . . . . . . . . Parts Recycled . | . . . . . . . . . . . . . . . . . . . . . . . . . . Recycled Matter . | . . . . . . . . . . . . . . . . . . . . . . . . . . Retrieved Matter . | . . . . . . . . . . . . . . . . . . . . . . . . . . Retrieved Components 8 | . . . . . . . . . 2 . . 1 . . . 3 . . . . . 2 . . . Parts Scanalyzed . | . . . . . . . . . . . . . . . . . . . . . . . . . . Part Schematics Acquired . | . . . . . . . . . . . . . . . . . . . . . . . . . . Parts Damaged . | . . . . . . . . . . . . . . . . . . . . . . . . . . Bothacking | -11 -10 -10 -9 -9 -9 -8 -8 -8 -8 -8 -6 -6 -6 -6 -6 -5 -5 -5 -5 -4 -4 -4 -4 -3 -2 ------------ Run | Yrd Mat Min Mat Min Exi Min Mat Sto Rec Scr Fac Ext Cet Arc Hub Fac Upp Upp War Pro Fac Arm Lab Res Res Used RIF Installer . | . . . . . . . . . . . . . . . . . . . . . . . . . . Robots Hacked 8 | . . . . . . . . . . . . . . . . 1 . . 6 . . . . . 1 Non-combat 3 | . . . . . . . . . . . . . . . . 1 . . 1 . . . . . 1 Combat 5 | . . . . . . . . . . . . . . . . . . . 5 . . . . . . Robot Hacks Applied 8 | . . . . . . . . . . . . . . . . 1 . . 6 . . . . . 1 parse_system 7 | . . . . . . . . . . . . . . . . . . . 6 . . . . . 1 find_chute 1 | . . . . . . . . . . . . . . . . 1 . . . . . . . . . Relay Couplers Released 4 | . . . . . . . . . . . . . . . . . . . . . . . . 2 2 Machine Destruction 4 | . . . . . . . . . . . . . . . . . . . . . . . . 2 2 Fabnet Peak Effective % . | . . . . . . . . . . . . . . . . . . . . . . . . . . Robots Rewired 13 | . . . . . . . . . . . . 8 . . . . . . 5 . . . . . . Allies Hacked . | . . . . . . . . . . . . . . . . . . . . . . . . . . Hacks Repelled . | . . . . . . . . . . . . . . . . . . . . . . . . . . Allies | -11 -10 -10 -9 -9 -9 -8 -8 -8 -8 -8 -6 -6 -6 -6 -6 -5 -5 -5 -5 -4 -4 -4 -4 -3 -2 -------- Run | Yrd Mat Min Mat Min Exi Min Mat Sto Rec Scr Fac Ext Cet Arc Hub Fac Upp Upp War Pro Fac Arm Lab Res Res Total Allies 45 | . . 1 . . . . . 10 . . . 21 5 . . . . . 5 . . 3 . . . Largest Group 14 | . . 1 . . . . . 10 9 9 9 14 14 9 6 3 . . 5 1 1 3 . . . Highest-Rated Group 652 | . . 31 . . . . . 173 157 157 157 521 652 650 443 231 . . 295 64 64 141 . . . Highest-Rated Ally 159 | . . 31 . . . . . 29 29 29 29 159 159 159 96 96 . . 68 64 64 47 . . . Total Orders 1 | . . . . . . . . 1 . . . . . . . . . . . . . . . . . EXPLORE 1 | . . . . . . . . 1 . . . . . . . . . . . . . . . . . Ally Attacks 404 | . . . . . . . . 33 5 . 79 89 59 19 34 31 . . 29 . . 26 . . . Total Damage 8736 | . . . . . . . . 445 50 . 1011 2109 1118 359 838 1061 . . 1067 . . 678 . . . Kills 63 | . . . . . . . . 5 2 . 8 13 7 2 8 9 . . 6 . . 3 . . . Allies Corrupted 1 | . . . . . . . . . . . . . . . . . . . . . . 1 . . . Allies Melted . | . . . . . . . . . . . . . . . . . . . . . . . . . . Intel | -11 -10 -10 -9 -9 -9 -8 -8 -8 -8 -8 -6 -6 -6 -6 -6 -5 -5 -5 -5 -4 -4 -4 -4 -3 -2 ------- Run | Yrd Mat Min Mat Min Exi Min Mat Sto Rec Scr Fac Ext Cet Arc Hub Fac Upp Upp War Pro Fac Arm Lab Res Res Active Infowar (turns) 6532 | 29 636 . . . . . . . . . 45 . . . . 437 973 712 334 272 907 1249 18 753 167 Optics 45 | . . . . . . . . . . . 45 . . . . . . . . . . . . . . Sensors 4523 | . . . . . . . . . . . . . . . . 437 973 712 334 272 907 237 . 484 167 Seismic 665 | 29 636 . . . . . . . . . . . . . . . . . . . . . . . . Cloaking 2086 | . . . . . . . . . . . . . . . . . . . . . . 1148 18 753 167 Robot Analysis Total . | . . . . . . . . . . . . . . . . . . . . . . . . . . Derelict Logs Recovered 5 | . . 1 . . . . . . . . . . . . . . 1 1 . 2 . . . . . Drone Launches 27 | . . . . . . . . 27 . . . . . . . . . . . . . . . . . Drone Recoveries 13 | . . . . . . . . 13 . . . . . . . . . . . . . . . . . Exploration | -11 -10 -10 -9 -9 -9 -8 -8 -8 -8 -8 -6 -6 -6 -6 -6 -5 -5 -5 -5 -4 -4 -4 -4 -3 -2 ------------- Run | Yrd Mat Min Mat Min Exi Min Mat Sto Rec Scr Fac Ext Cet Arc Hub Fac Upp Upp War Pro Fac Arm Lab Res Res Turns Passed 20353 | 136 854 375 1648 269 356 1111 1605 990 784 827 652 1273 456 245 442 1395 973 712 1884 272 907 1249 18 753 167 Spaces Moved 10159 | 68 416 219 547 167 223 535 436 371 502 540 358 661 186 115 230 654 488 418 1076 231 417 600 15 581 105 Core 17 | 17 . . . . . . . . . . . . . . . . . . . . . . . . . Treads 8573 | 51 416 219 547 167 223 535 436 371 502 540 358 661 186 115 230 654 488 418 868 . 410 178 . . . Legs 1569 | . . . . . . . . . . . . . . . . . . . 208 231 7 422 15 581 105 Wheels . | . . . . . . . . . . . . . . . . . . . . . . . . . . Hover . | . . . . . . . . . . . . . . . . . . . . . . . . . . Flight . | . . . . . . . . . . . . . . . . . . . . . . . . . . Fastest Speed 50 | 50 160 160 160 160 160 160 155 145 145 145 145 145 148 160 160 160 160 160 100 100 100 100 122 111 111 Average Speed 150 | 132 160 160 160 160 160 173 185 145 145 145 145 147 156 160 160 160 160 160 149 103 159 129 122 114 111 Slowest Speed 320 | 160 160 160 200 160 160 200 280 156 145 145 185 148 160 160 160 240 160 160 240 105 320 160 122 122 111 Overloaded Moves . | . . . . . . . . . . . . . . . . . . . . . . . . . . Propulsion Burnouts . | . . . . . . . . . . . . . . . . . . . . . . . . . . Robots Hopped . | . . . . . . . . . . . . . . . . . . . . . . . . . . Potential Cave-ins 2 | . . . . . . . . . . . . . . . . . . . . . 2 . . . . Cave-ins Triggered . | . . . . . . . . . . . . . . . . . . . . . . . . . . Exploration Rate (%) 47 | 4 82 44 53 34 66 90 39 58 98 55 12 85 68 69 22 29 60 49 91 45 18 44 6 14 5 Regions Visited 25 Branch Regions 17 Pre-discovered Areas 19 | . 2 . 3 . . . 4 2 7 . . . . . . . . . . 1 . . . . . Known Exits Taken 18 | . . . 1 . . 1 1 1 1 1 1 1 . . 1 1 1 1 1 1 1 1 1 1 . Unknown Exits Taken 7 | 1 1 1 . 1 1 . . . . . . . 1 1 . . . . . . . . . . . Scrap Searched 10 | . . . . . . 1 . . . 5 . . . . . . . 3 . 1 . . . . . Spaces Dug 75 | . . . . . . . . . . . . . . . 3 4 . . . . 48 13 . 5 2 Terrain Destroyed 748 | . . . . . . . 24 . . . . . 3 17 172 75 37 12 198 30 87 76 . 12 5 Melee . | . . . . . . . . . . . . . . . . . . . . . . . . . . Projectile 319 | . . . . . . . 24 . . . . . 3 17 10 55 7 11 29 30 82 34 . 12 5 AOE 428 | . . . . . . . . . . . . . . . 162 20 30 . 169 . 5 42 . . . Terrain Rammed . | . . . . . . . . . . . . . . . . . . . . . . . . . . Walls Destroyed . | . . . . . . . . . . . . . . . . . . . . . . . . . . Machines Disabled . | . . . . . . . . . . . . . . . . . . . . . . . . . . Actions | -11 -10 -10 -9 -9 -9 -8 -8 -8 -8 -8 -6 -6 -6 -6 -6 -5 -5 -5 -5 -4 -4 -4 -4 -3 -2 --------- Run | Yrd Mat Min Mat Min Exi Min Mat Sto Rec Scr Fac Ext Cet Arc Hub Fac Upp Upp War Pro Fac Arm Lab Res Res Total 13803 | 99 507 244 1158 167 222 628 1108 712 551 584 462 912 313 145 279 807 653 432 1303 247 587 898 14 640 131 Wait 1942 | 3 15 24 462 . . 23 531 204 43 37 10 90 46 14 32 7 146 . 65 . 74 86 . 20 10 Move 10134 | 67 415 218 546 166 222 534 435 370 501 539 357 660 185 114 229 653 487 417 1076 230 416 599 14 579 105 Hop . | . . . . . . . . . . . . . . . . . . . . . . . . . . Pick Up 229 | 13 13 2 24 . . 5 27 10 . 5 20 9 15 2 2 16 2 1 23 . 7 26 . 7 . Fast Attach 59 | . . . 2 . . . 2 4 . . 5 . 5 . . 9 1 . 12 . 4 12 . 3 . Attach 117 | 7 4 . 6 . . 5 14 4 . . 10 4 5 . 2 10 2 1 19 1 5 17 . . 1 Detach 13 | . . . . . . . . . . . 1 . . . . 2 1 . 5 1 2 1 . . . Swap 97 | 1 1 . 8 . . 5 6 14 . 1 4 4 7 . 2 9 1 . 21 1 2 7 . 1 2 Drop 210 | . 4 . 17 . . 4 19 21 . 2 18 4 23 2 2 15 1 . 33 . 6 32 . 7 . Fire 857 | 8 55 . 93 1 . 52 70 43 7 . 37 53 19 13 10 86 12 13 49 14 70 117 . 22 13 Melee . | . . . . . . . . . . . . . . . . . . . . . . . . . . Ram . | . . . . . . . . . . . . . . . . . . . . . . . . . . Kick 1 | . . . . . . . . . . . . . . . . . . . . . . 1 . . . Crush 10 | . . . . . . . 4 4 . . . 1 . . . . . . . . 1 . . . . Escape Stasis 1 | . . . . . . . . . . . . . . . . . . . . . . . . 1 . Rewire 94 | . . . . . . . . 7 . . . 87 . . . . . . . . . . . . . Trap . | . . . . . . . . . . . . . . . . . . . . . . . . . . Miscellaneous 39 | . . . . . . . . 31 . . . . 8 . . . . . . . . . . . . Route ------- -11/Scrapyard -10/Materials (discovered 4 exits: *Mat x3 / *Min) -10/Mines -9/Materials (discovered 5 exits: *Mat x3 / *Min x2) -9/Mines (discovered 3 exits: Mat x2 / *Exi) -9/Exiles -8/Mines (discovered 2 exits: *Mat x2) -8/Materials (discovered 5 exits: *Fac x3 / *Sto x2) -8/Storage (discovered 2 exits: *Fac / *Rec) -8/Recycling (discovered 2 exits: *Fac / *Scr) -8/Scraptown -6/Factory (discovered 5 exits: Fac / Low x2 / *Ext x2) -6/Extension (discovered 2 exits: *Fac / *Cet) -6/Cetus (discovered 2 exits: *Fac / [*Arc]) -6/Archives (discovered 2 exits: *Hub x2) -6/Hub_04(d) -5/Factory (discovered 4 exits: *Fac x2 / *Upp x2) -5/Upper Caves -5/Upper Caves (discovered 2 exits: *Fac / *War) -5/Warlord -4/Proximity Caves -4/Factory (discovered 7 exits: Res x4 / *Upp x2 / *Arm) -4/Armory -4/Lab -3/Research -2/Research History --------- Turn | Location | Event 12 | -11/Scrapyard | Discovered new exit (range 16) 137 | -11/Scrapyard | Entered Materials 317 | -10/Materials | Build established: Mutant 327 | -10/Materials | Discovered new exit (range 16) 398 | -10/Materials | Discovered new exit (range 15) 464 | -10/Materials | Discovered new exit (range 10) 644 | -10/Materials | Discovered new exit (range 10) 991 | -10/Materials | Entered Mines 1059 | -10/Mines | Received a Mining Laser from a helpful Derelict 1205 | -10/Mines | Learned 8 Materials zone layouts 1223 | -10/Mines | Discovered new exit (range 5) 1293 | -10/Mines | Assembled infested the area 1294 | -10/Mines | Received a Rocket Launcher from a helpful Derelict 1298 | -10/Mines | Assisted by a Guerilla fighting off Assembled 1366 | -10/Mines | Entered Materials 1366 | -9/Materials | Evolved 2 slots: Propulsion x1, Utility x1 1367 | -9/Materials | Identified exit to Mines 1368 | -9/Materials | Identified exit to Materials 2131 | -9/Materials | Discovered exit to Materials (range 15) 2149 | -9/Materials | Build established: Scavenger-Mutant 2582 | -9/Materials | Learned 2 Storage zone layouts 2651 | -9/Materials | Learned Storage stockpile data 2710 | -9/Materials | Learned location of Recycling (-8) 2804 | -9/Materials | Learned location of Storage (-8) 2897 | -9/Materials | Learned location of Zion (-7) 2994 | -9/Materials | Learned location of 1 exit from Recycling 3014 | -9/Materials | Entered Mines 3200 | -9/Mines | Deemed a non-threat by the Exiles lab entrance 3200 | -9/Mines | Discovered new exit (range 5) 3238 | -9/Mines | Excavation squad dispatched 3238 | -9/Mines | A large section of the Mines collapsed 3283 | -9/Mines | Entered Exiles 3283 | -9/Exiles | Found Exiles lab abandoned 3626 | -9/Exiles | Discovered new exit (range 10) 3639 | -9/Exiles | Entered Mines 3941 | -8/Mines | Discovered exit to Materials (range 15) 4068 | -8/Mines | Discovered exit to Materials (range 7) 4750 | -8/Mines | Entered Materials 4750 | -8/Materials | Evolved 2 slots: Propulsion x1, Weapon x1 4751 | -8/Materials | Identified exit to Storage 5062 | -8/Materials | Destroyed 7 combat bots 5065 | -8/Materials | Lost 4 parts (2n1u1w) 5308 | -8/Materials | Build established: Mutant 5624 | -8/Materials | Discovered exit to Storage (range 14) 5647 | -8/Materials | Central database locked down 5688 | -8/Materials | Discovered new exit (range 15) 5889 | -8/Materials | Learned location of 1 exit from Extension 5959 | -8/Materials | Learned 8 Factory zone layouts 5968 | -8/Materials | Build established: Scavenger-Tank 6020 | -8/Materials | Learned Storage security intel 6071 | -8/Materials | Learned location of Extension (-6) 6149 | -8/Materials | Learned 4 Lower Caves zone layouts 6243 | -8/Materials | Identified exit to Factory 6355 | -8/Materials | Entered Storage 6464 | -8/Storage | Identified exit to Recycling 6635 | -8/Storage | Lost 8 allies 6787 | -8/Storage | Build established: Gunner 6907 | -8/Storage | Assisted by bots powering up and referring to "LRC-V3" 7106 | -8/Storage | Learned location of 1 exit from Recycling 7126 | -8/Storage | Discovered exit to Factory (range 8) 7153 | -8/Storage | Learned Recycling recycling unit intel 7189 | -8/Storage | Learned 4 Recycling zone layouts 7190 | -8/Storage | Build established: Commander-Gunner 7216 | -8/Storage | Learned Factory terminal intel 7234 | -8/Storage | Learned Factory stockpile data 7237 | -8/Storage | Used back door to open Recycling access 7269 | -8/Storage | Learned location of 1 exit from Extension 7335 | -8/Storage | Learned 2 Lower Caves zone layouts 7345 | -8/Storage | Entered Recycling 7345 | -8/Recycling | Accompanied by 9 allies 7346 | -8/Recycling | Identified exit to Factory 7347 | -8/Recycling | Identified exit to Scraptown 7349 | -8/Recycling | Loaded intel: 6 recycling unit locations 8062 | -8/Recycling | Scanned before Scraplab entrance 8091 | -8/Recycling | Entered Scraplab 8129 | -8/Recycling | Entered Scraptown 8129 | -8/Scraptown | Accompanied by 9 allies 8397 | -8/Scraptown | Visited Assassins FH 8406 | -8/Scraptown | Visited Comm Corps 8418 | -8/Scraptown | Visited The Evicted 8436 | -8/Scraptown | Visited Bundlers 8533 | -8/Scraptown | Visited Symbiants 8775 | -8/Scraptown | Visited Shadow of the Wyrm 8800 | -8/Scraptown | Visited UFD Registry 8956 | -8/Scraptown | Entered Factory 8956 | -6/Factory | Accompanied by 9 allies 8956 | -6/Factory | Evolved 4 slots: Power x1, Utility x2, Weapon x1 8957 | -6/Factory | Identified exit to Factory 8959 | -6/Factory | Loaded intel: 28 terminal locations 9364 | -6/Factory | Identified exit to Lower Caves 9364 | -6/Factory | Identified exit to Extension 9473 | -6/Factory | Found Prototype Launcher 9473 | -6/Factory | Identified Scatter Rocket Array 9479 | -6/Factory | Found Scatter Rocket Array 9484 | -6/Factory | Found Scatter Rocket Array 9488 | -6/Factory | Found Scatter Rocket Array 9495 | -6/Factory | Found Faulty Scatter Rocket Array 9569 | -6/Factory | Lost 4 allies 9576 | -6/Factory | Garrison activated, responded to threat 9608 | -6/Factory | Entered Extension 9608 | -6/Extension | Accompanied by 3 allies 9609 | -6/Extension | Identified exit to Cetus 9858 | -6/Extension | Rescued a captive Derelict 9859 | -6/Extension | Rescued a captive Derelict 9889 | -6/Extension | Rescued a captive Derelict 9891 | -6/Extension | Rescued a captive Derelict 9911 | -6/Extension | Rescued A7 9936 | -6/Extension | Rescued a captive Derelict 9937 | -6/Extension | Rescued a captive Derelict 10316 | -6/Extension | Spotted B-75 Beast 10323 | -6/Extension | Destroyed B-75 Beast 10337 | -6/Extension | Spotted B-75 Beast 10348 | -6/Extension | Build established: Gunner 10353 | -6/Extension | Allies destroyed B-75 Beast 10540 | -6/Extension | Rescued a captive Derelict 10541 | -6/Extension | Rescued a captive Derelict 10633 | -6/Extension | Disrupted transfer network 10643 | -6/Extension | Rescued a captive Derelict 10644 | -6/Extension | Rescued a captive Derelict 10763 | -6/Extension | Rescued a captive Derelict 10772 | -6/Extension | Rescued a captive Derelict 10790 | -6/Extension | Build established: Commander-Gunner 10881 | -6/Extension | Entered Cetus 10881 | -6/Cetus | Accompanied by 14 allies (A7) 10886 | -6/Cetus | Acquired a Cetus Manufacturing Module code from A7 10900 | -6/Cetus | Spotted Cetus Guard 10900 | -6/Cetus | Spotted Cetus Guard 10909 | -6/Cetus | Spotted Cetus Guard 10909 | -6/Cetus | Spotted Cetus Guard 10910 | -6/Cetus | Destroyed Cetus Guard 10922 | -6/Cetus | Allies destroyed Cetus Guard 10932 | -6/Cetus | Destroyed Cetus Guard 10934 | -6/Cetus | Allies destroyed Cetus Guard 10960 | -6/Cetus | Lost 5 allies 10993 | -6/Cetus | System corruption reached 10% 11076 | -6/Cetus | Started Cetus Manufacturing Module 11101 | -6/Cetus | Manufactured an Enhanced Grunt 11114 | -6/Cetus | Escorted A7 to Cetus Mainframe 11126 | -6/Cetus | Manufactured an Enhanced Grunt 11135 | -6/Cetus | Discovered new exit (range 16) 11151 | -6/Cetus | Manufactured an Enhanced Grunt 11165 | -6/Cetus | Spotted Cetus Guard 11166 | -6/Cetus | Spotted Cetus Guard 11176 | -6/Cetus | Manufactured an Enhanced Grunt 11177 | -6/Cetus | Spotted Cetus Guard 11179 | -6/Cetus | Destroyed Cetus Guard 11181 | -6/Cetus | Allies destroyed Cetus Guard 11181 | -6/Cetus | Spotted Cetus Guard 11192 | -6/Cetus | Allies destroyed Cetus Guard 11197 | -6/Cetus | Destroyed Cetus Guard 11201 | -6/Cetus | Manufactured an Enhanced Grunt 11203 | -6/Cetus | Discovered exit to Factory (range 16) 11211 | -6/Cetus | Met Revision 17 11229 | -6/Cetus | Lost 5 allies 11258 | -6/Cetus | Build established: Scavenger-Tank 11337 | -6/Cetus | Entered Archives 11337 | -6/Archives | Accompanied by 9 allies (A7) 11342 | -6/Archives | Received a hacking code to weaken MAIN.C 11421 | -6/Archives | Discovered new exit (range 15) 11446 | -6/Archives | Discovered new exit (range 13) 11582 | -6/Archives | Entered Hub_04(d) 11582 | -6/Hub_04(d) | Accompanied by 6 allies 11692 | -6/Hub_04(d) | Discovered exit to Factory (range 9) 11988 | -6/Hub_04(d) | Network Hub disabled 12015 | -6/Hub_04(d) | System corruption reached 30% 12024 | -6/Hub_04(d) | Entered Factory 12024 | -5/Factory | Accompanied by 3 allies 12024 | -5/Factory | Evolved 2 slots: Utility x2 12206 | -5/Factory | Discovered new exit (range 12) 12226 | -5/Factory | Identified exit to Factory 12624 | -5/Factory | First assault squad dispatched 12712 | -5/Factory | Discovered exit to Factory (range 8) 12732 | -5/Factory | Identified exit to Upper Caves 12861 | -5/Factory | Garrison activated, responded to threat 12961 | -5/Factory | Garrison activated, responded to threat 12967 | -5/Factory | System corruption reached 10% 13030 | -5/Factory | Destroyed 7 combat bots 13032 | -5/Factory | Lost 4 parts (1p1u2w) 13419 | -5/Factory | Entered Upper Caves 13527 | -5/Upper Caves | Learned Factory emergency access door positions 14281 | -5/Upper Caves | Discovered new exit (range 10) 14297 | -5/Upper Caves | Identified exit to Upper Caves 14392 | -5/Upper Caves | Entered another Upper Caves area 14394 | -5/Upper Caves | Discovered exit to Factory (range 10) 14781 | -5/Upper Caves | Encountered a Warlord checkpoint 14875 | -5/Upper Caves | Learned Factory interactive machine intel 14989 | -5/Upper Caves | Discovered new exit (range 13) 15008 | -5/Upper Caves | Identified exit to Warlord 15104 | -5/Upper Caves | Entered Warlord 15157 | -5/Warlord | System corruption cleaned by Quarantine Array 15291 | -5/Warlord | Found Prototype Reactor 15301 | -5/Warlord | Found Prototype Processor 15303 | -5/Warlord | Identified Exp. Targeting Computer 15310 | -5/Warlord | Found Prototype Hackware 15318 | -5/Warlord | Found Prototype Processor 15319 | -5/Warlord | Identified Exp. Target Analyzer 15324 | -5/Warlord | Found Prototype Device 15325 | -5/Warlord | Identified Exp. Focal Shield 15720 | -5/Warlord | Received a Watcher feed algorithm from an ecstatic Tinkerer 15993 | -5/Warlord | Met Warlord 16008 | -5/Warlord | Warlord's base attacked by MAIN.C 16086 | -5/Warlord | Found Prototype Special Weapon 16087 | -5/Warlord | Identified RU-N14's Throwing Claymores v3 16090 | -5/Warlord | Found RU-N14's Throwing Claymores v3 16093 | -5/Warlord | Found RU-N14's Throwing Claymores v3 16099 | -5/Warlord | Found RU-N14's Throwing Claymores v3 16107 | -5/Warlord | Found RU-N14's Throwing Claymores v3 16110 | -5/Warlord | Found RU-N14's Throwing Claymores v3 16307 | -5/Warlord | Destroyed 15 combat bots 16337 | -5/Warlord | Warlord forces counterattacked 16349 | -5/Warlord | Spotted B-86 Titan 16357 | -5/Warlord | Destroyed B-86 Titan 16362 | -5/Warlord | Spotted Striker 16371 | -5/Warlord | Allies destroyed Striker 16380 | -5/Warlord | Destroyed 11 combat bots 16472 | -5/Warlord | Found Prototype Energy Gun 16474 | -5/Warlord | Found Prototype Energy Gun 16475 | -5/Warlord | Identified Vortex Shotgun (x2) 16481 | -5/Warlord | Found Prototype Energy Gun 16482 | -5/Warlord | Identified Vortex Rail 16486 | -5/Warlord | Found Vortex Rail 16491 | -5/Warlord | Met EX-DEC 16499 | -5/Warlord | Found Prototype Energy Cannon 16583 | -5/Warlord | Spotted Executioner 16583 | -5/Warlord | Spotted Executioner 16649 | -5/Warlord | Found Prototype Processor 16683 | -5/Warlord | Warlord base infiltrated, sounded retreat 16789 | -5/Warlord | Found Prototype Launcher 16789 | -5/Warlord | Identified Chain Missile Launcher 16792 | -5/Warlord | Identified Exp. Core Analyzer 16806 | -5/Warlord | Spotted Executioner 16813 | -5/Warlord | Destroyed Executioner 16884 | -5/Warlord | Spotted B-75 Beast 16939 | -5/Warlord | Spotted Executioner 16940 | -5/Warlord | Discovered new exit (range 15) 16973 | -5/Warlord | Identified exit to Proximity Caves 16988 | -5/Warlord | Entered Proximity Caves 16988 | -4/Proximity Caves | Accompanied by 1 ally 17125 | -4/Proximity Caves | Learned location of Armory (-4) 17212 | -4/Proximity Caves | Build established: Scavenger-Gunner 17260 | -4/Proximity Caves | Entered Factory 17260 | -4/Factory | Accompanied by 1 ally 17260 | -4/Factory | Evolved 2 slots: Propulsion x2 17262 | -4/Factory | Loaded intel: 52 interactive machine locations 17379 | -4/Factory | Identified Ghost Barrier 17579 | -4/Factory | Identified exit to Research 17709 | -4/Factory | Identified exit to Upper Caves 17709 | -4/Factory | Identified exit to Armory 17877 | -4/Factory | Build established: Scavenger-Mutant 17918 | -4/Factory | System corruption reached 10% 18167 | -4/Factory | Entered Armory 18343 | -4/Armory | Found Fusion Bomb Launcher 18346 | -4/Armory | Found Fusion Bomb Launcher 18627 | -4/Armory | Spotted B-86 Titan 18680 | -4/Armory | Destroyed B-86 Titan 18921 | -4/Armory | Destroyed 7 combat bots 18976 | -4/Armory | Build established: Gunner 19002 | -4/Armory | Fabricated G-67 Veteran (x3) 19404 | -4/Armory | Discovered new exit (range 3) 19405 | -4/Armory | Identified exit to Lab 19416 | -4/Armory | Entered Lab 19416 | -4/Lab | Discovered exit to Research (range 9) 19431 | -4/Lab | Unable to decrypt terminal 19434 | -4/Lab | Entered Research 19434 | -3/Research | Evolved 2 slots: Utility x2 19634 | -3/Research | Revision forces began assault on 0b10 19694 | -3/Research | Met up with Revision 17++ 20001 | -3/Research | Discovered new exit (range 8) 20007 | -3/Research | Identified exit to Research 20134 | -3/Research | Research terminal network offline 20187 | -3/Research | Entered another Research area 20187 | -2/Research | Warlord forces began assault on 0b10 20187 | -2/Research | Evolved 2 slots: Power x2 20297 | -2/Research | Research machine network offline 20336 | -2/Research | Attached CPS modules to 3A-PHF(T). 20352 | -2/Research | Attacked by Warlord forces 20354 | -2/Research | Core destroyed Last Messages --------------- Reading system data... New IDs: Exp. Utility Shielding Vortex Field Projector Vortex Shredder 20336_ CPS Tube expended. 20336_ CPS modules attach to 3A-PHF(T). 20339_ 7M-4SR(B) destroyed. 20346_ 3A-PHF(T) shreds Reaction Chamber. 20346_ Reaction Chamber disabled. 20347_ G-73 Enforcer destroyed. 20347_ G-73 Enforcer suffers critical hit (Destroy). 20350_ Power failure, Hvy. Antimatter Reactor shutdown. 20350_ 3A-PHF(T) shreds Reaction Chamber. 20351_ 31-KF2(B) activates siege mode. 20352_ ANNOUNCEMENT: Cogmind has turned on us. Destroy the traitor. 20353_ ALERT: Hostile activity reported, dispatching reinforcements to area. 20354_ 3A-PHF(T) shreds Reaction Chamber. 20354_ 3A-PHF(T) shreds... Map ----- +----------------------------------------------------+ | ?????????????????????????????????????????????????? | | ?????????????????????????????????????????????????? | | ?????????????????????????????????????????????????? | | ?????????????????????????????????????????????????? | | ?????????????????????????????????????????????????? | | ?????????????????????????????????????????????????? | | ?????????????????????????????????????????????????? | | ?????????????????????????????????????????????????? | | ?????????????????????????????????????????????????? | | ?????????????????????????????????????????????????? | | ????????????????????????? """* #????????????????? | | ??????????????????????? k#???????????????? | | ????????????????????? #???????????????? | | ???????????????????? # ??????????????? | | ???????????????????# /RR?????????????? | | ???????????????????# #???????????????? | | ???????????????????# #???????????????? | | ???????????????????# ] #???????????????? | | ???????????????????# ##########??????? | | ???????????????????# % # !!!#??????? | | ???????????????????# # !!!#??????? | | ???????????????????# """ # !! #??????? | | ???????????##;;#####S """ # #??????? | | ??????????= %%! %TTT" # #??????? | | ??????????*% ! TTT # #??????? | | ?????????? % TTT@ + #??????? | | ?????????? % BB % % # #??????? | | ???????????#;gBB;;;####+### # #??????? | | ???????????]!%=???????????##########+############# | | ???????????g????????????????#!!????# #???# | | ???????????m????????????????#!! ??# #??## | | ????????????????????????????# # ####" | | ????????????????????????????# + | | ????????????????????????????# # ######+###### | | ????????????????????????????# ??# #??? ???? | | ????????????????????????????#Y#????#k#? ?? | | ???????????????????????????????????# # !!! | | ???????????????????????????????????# # !! | | ???????????????????????????????????# # !! | | ???????????????????????????????????# # | | ???????????????????????????????????# # | | ???????????????????????????????????? # """ """ | | ???????????????????????????????????? # """ """ | | ???????????????????????????????????? # """ """ | | ???????????????????????????????????? # ??? ??? | | ???????????????????????????????????? # ???? ???? | | ???????????????????????????????????? #?????###???? | | ???????????????????????????????????? ????????????? | | ?????????????????????????????????????????????????? | | ?????????????????????????????????????????????????? | +----------------------------------------------------+ Best States ------------- Heat Dissipation 81 Energy Generation 45 Energy Capacity 600 Matter Stores 418 Matter Capacity 550 Sight Range 22 Robot Scan Range 16 Terrain Scan Density 10 Cloak Strength 4 Armor Coverage 450 Resistance: KI 30 Evasion (%) 82 Targeting Accuracy 12 Target Analysis 10 Core Analysis 8 Recoil Reduction 4 Salvage Targeting 1 Offensive Hacking 14 Defensive Hacking 20 Item Schematics ----------------- None Robot Schematics ------------------ None Fabricated ------------ G-67 Veteran | x3 | -4/Armory | Preloaded Repaired ---------- Nothing Studied --------- Lgt. Treads | -9/Materials | Hacked Hvy. Assault Rifle | -9/Materials | Hacked Lgt. Assault Rifle | -9/Materials | Hacked Adv. Treads | -8/Materials | Hacked Hvy. Shield Leg | -3/Research | Hacked Imp. Thunder Leg | -3/Research | Hacked Alien Tech Used ----------------- None Achievements -------------- A Problem For Future Me Freedom! Not Today, Chutes Protector Challenges ------------ None Game ------ Seed CoolingEnhancedExpander Manual? 0 Play Time 02:21:38 Cumulative 422.0 hours Start 2025.10.25 @ 06:33:58 End 2025.10.25 @ 08:59:56 Sessions 1 Manual Loads 0 Difficulty Rogue Special Mode None Game No. 545 Rogue 545 Adventurer 0 Explorer 0 Win Type - Total 12 Types 6/0/1/2/1/0/2/0/0/0 Lore% 89 Gallery% 84 Achievement% 53 Wizard Run 0 Options --------- Layout 0 ASCII 0 Keyboard 0 Movement Mouse Keybinds 0 Fullscreen 1 Font 24/Terminus Map View 76x50 Zoom Use 0% Tactical HUD 1 Map Filters NONE Filters NONE Steam 1 RUN: 6161ad79-9bb3-4fab-8d9b-bf3aae00534e